[Event "NJSK 2018 Jeugd A"]
[Site "Assen, Netherlands"]
[Date "2018.05.02"]
[Round "4.3"]
[White "Reichardt, Robin"]
[Black "Schoppen, Casper"]
[Result "0-1"]
[TimeControl "40/90m+30m+30sec/move"]
[WhiteElo "1936"]
[BlackElo "2396"]

1. d4 {[%clk 01:30:57]} {[%emt 00:00:02]} Nf6 {[%clk 01:30:51]} {[%emt
00:00:09]} 2. c4 {[%clk 01:31:20]} {[%emt 00:00:07]} g6 {[%clk 01:31:14]}
{[%emt 00:00:08]} 3. Nc3 {[%clk 01:30:56]} {[%emt 00:00:54]} d5 {[%clk
01:31:26]} {[%emt 00:00:18]} 4. Nf3 {[%clk 01:29:25]} {[%emt 00:02:01]} Bg7
{[%clk 01:31:43]} {[%emt 00:00:13]} 5. Bf4 {[%clk 01:28:40]} {[%emt 00:01:15]}
O-O {[%clk 01:31:07]} {[%emt 00:01:05]} 6. e3 {[%clk 01:28:47]} {[%emt
00:00:24]} c5 {[%clk 01:30:16]} {[%emt 00:01:21]} 7. dxc5 {[%clk 01:24:11]}
{[%emt 00:05:06]} Qa5 {[%clk 01:30:20]} {[%emt 00:00:26]} 8. Be2 {[%clk
01:17:45]} {[%emt 00:06:55]} Ne4 {[%clk 01:26:36]} {[%emt 00:04:14]} 9. O-O
{[%clk 01:16:11]} {[%emt 00:02:03]} Nxc3 {[%clk 01:26:20]} {[%emt 00:00:47]} 10.
bxc3 {[%clk 01:16:33]} {[%emt 00:00:08]} dxc4 {[%clk 01:26:30]} {[%emt
00:00:20]} 11. Bxc4 {[%clk 01:15:03]} {[%emt 00:02:00]} Qxc5 {[%clk 01:26:12]}
{[%emt 00:00:48]} 12. Qd5 {[%clk 01:05:16]} {[%emt 00:10:18]} Nd7 {[%clk
01:21:01]} {[%emt 00:05:41]} 13. Qxc5 {[%clk 00:59:09]} {[%emt 00:06:37]} Nxc5
{[%clk 01:21:11]} {[%emt 00:00:20]} 14. Be5 {[%clk 00:57:36]} {[%emt 00:02:03]}
Bxe5 {[%clk 01:20:08]} {[%emt 00:01:32]} 15. Nxe5 {[%clk 00:57:19]} {[%emt
00:00:47]} Be6 {[%clk 01:20:17]} {[%emt 00:00:21]} 16. Bxe6 {[%clk 00:48:07]}
{[%emt 00:09:43]} Nxe6 {[%clk 01:20:27]} {[%emt 00:00:20]} 17. Rfd1 {[%clk
00:42:00]} {[%emt 00:06:36]} Rfd8 {[%clk 01:16:40]} {[%emt 00:04:18]} 18. Kf1
{[%clk 00:37:57]} {[%emt 00:04:34]} f6 {[%clk 01:15:43]} {[%emt 00:01:26]} 19.
Nf3 {[%clk 00:37:10]} {[%emt 00:01:17]} Nc5 {[%clk 01:15:27]} {[%emt 00:00:47]}
20. Nd4 {[%clk 00:28:01]} {[%emt 00:09:39]} Rac8 {[%clk 01:11:29]} {[%emt
00:04:28]} 21. Rac1 {[%clk 00:22:43]} {[%emt 00:05:48]} Na4 {[%clk 01:08:31]}
{[%emt 00:03:28]} 22. Ne2 {[%clk 00:21:13]} {[%emt 00:02:00]} e5 {[%clk
00:59:33]} {[%emt 00:09:28]} 23. Ke1 {[%clk 00:18:09]} {[%emt 00:03:34]} Nb2
{[%clk 00:56:40]} {[%emt 00:03:24]} 24. Rxd8+ {[%clk 00:17:28]} {[%emt
00:01:11]} Rxd8 {[%clk 00:57:05]} {[%emt 00:00:05]} 25. Kf1 {[%clk 00:14:57]}
{[%emt 00:03:00]} Rd2 {[%clk 00:55:47]} {[%emt 00:01:48]} 26. Ke1 {[%clk
00:11:09]} {[%emt 00:04:19]} Nc4 {[%clk 00:53:33]} {[%emt 00:02:44]} 27. f4
{[%clk 00:08:42]} {[%emt 00:02:57]} Rxa2 {[%clk 00:52:07]} {[%emt 00:01:56]} 28.
Kf2 {[%clk 00:08:14]} {[%emt 00:00:57]} Kf7 {[%clk 00:50:55]} {[%emt 00:01:43]}
29. Rb1 {[%clk 00:07:13]} {[%emt 00:01:31]} Rb2 {[%clk 00:50:59]} {[%emt
00:00:26]} 30. Ra1 {[%clk 00:07:20]} {[%emt 00:00:23]} a5 {[%clk 00:51:20]}
{[%emt 00:00:10]} 31. Ra4 {[%clk 00:07:33]} {[%emt 00:00:17]} b5 {[%clk
00:51:42]} {[%emt 00:00:07]} 0-1

[Event "NJSK 2018 Jeugd A"]
[Site "Assen, Netherlands"]
[Date "2018.05.02"]
[Round "4.4"]
[White "Pols, Wiggert"]
[Black "Mesman, Edwyn"]
[Result "1-0"]
[TimeControl "40/90m+30m+30sec/move"]
[WhiteElo "2068"]
[BlackElo "2082"]

1. Nf3 {[%clk 01:30:31]} {[%emt 00:00:28]} Nf6 {[%clk 01:29:17]} {[%emt
00:01:36]} 2. g3 {[%clk 01:30:57]} {[%emt 00:00:12]} d5 {[%clk 01:29:15]}
{[%emt 00:00:32]} 3. Bg2 {[%clk 01:31:22]} {[%emt 00:00:05]} e6 {[%clk
01:29:36]} {[%emt 00:00:09]} 4. O-O {[%clk 01:31:47]} {[%emt 00:00:05]} Be7
{[%clk 01:29:53]} {[%emt 00:00:13]} 5. d4 {[%clk 01:32:12]} {[%emt 00:00:05]}
O-O {[%clk 01:30:18]} {[%emt 00:00:05]} 6. c4 {[%clk 01:32:37]} {[%emt
00:00:04]} dxc4 {[%clk 01:30:44]} {[%emt 00:00:05]} 7. Qc2 {[%clk 01:32:28]}
{[%emt 00:00:40]} a6 {[%clk 01:28:58]} {[%emt 00:02:16]} 8. a4 {[%clk
01:32:29]} {[%emt 00:00:28]} Bd7 {[%clk 01:29:21]} {[%emt 00:00:07]} 9. Rd1
{[%clk 01:31:34]} {[%emt 00:01:25]} Bc6 {[%clk 01:12:05]} {[%emt 00:17:47]} 10.
Nc3 {[%clk 01:30:48]} {[%emt 00:01:16]} a5 {[%clk 01:07:10]} {[%emt 00:05:25]}
11. e4 {[%clk 01:27:16]} {[%emt 00:04:01]} Na6 {[%clk 01:03:36]} {[%emt
00:04:05]} 12. Ne5 {[%clk 01:26:50]} {[%emt 00:00:56]} Nb4 {[%clk 00:50:07]}
{[%emt 00:14:00]} 13. Qe2 {[%clk 01:23:33]} {[%emt 00:03:45]} Qe8 {[%clk
00:44:16]} {[%emt 00:06:21]} 14. Qxc4 {[%clk 01:18:03]} {[%emt 00:06:00]} Rc8
{[%clk 00:32:45]} {[%emt 00:12:02]} 15. Qe2 {[%clk 01:07:12]} {[%emt 00:11:20]}
b6 {[%clk 00:31:49]} {[%emt 00:01:26]} 16. Nxc6 {[%clk 01:05:17]} {[%emt
00:02:24]} Qxc6 {[%clk 00:28:46]} {[%emt 00:03:33]} 17. d5 {[%clk 01:04:24]}
{[%emt 00:01:23]} exd5 {[%clk 00:24:54]} {[%emt 00:04:23]} 18. e5 {[%clk
01:03:49]} {[%emt 00:01:05]} Nd7 {[%clk 00:21:01]} {[%emt 00:04:23]} 19. Nxd5
{[%clk 01:03:52]} {[%emt 00:00:26]} Nxd5 {[%clk 00:13:20]} {[%emt 00:08:11]} 20.
Bxd5 {[%clk 01:04:14]} {[%emt 00:00:08]} Qc5 {[%clk 00:13:37]} {[%emt
00:00:14]} 21. Be3 {[%clk 01:02:05]} {[%emt 00:02:38]} Qb4 {[%clk 00:13:28]}
{[%emt 00:00:39]} 22. Rd4 {[%clk 01:02:10]} {[%emt 00:00:25]} Qc5 {[%clk
00:13:54]} {[%emt 00:00:04]} 23. Rc1 {[%clk 01:02:08]} {[%emt 00:00:31]} 1-0

[Event "NJSK 2018 Jeugd A"]
[Site "Assen, Netherlands"]
[Date "2018.05.02"]
[Round "4.5"]
[White "De Boer, Bas"]
[Black "Van Dael, Siem"]
[Result "1-0"]
[TimeControl "40/90m+30m+30sec/move"]
[WhiteElo "2159"]
[BlackElo "2268"]

1. d4 {[%clk 01:30:57]} {[%emt 00:00:03]} d5 {[%clk 01:30:57]} {[%emt
00:00:04]} 2. c4 {[%clk 01:31:14]} {[%emt 00:00:13]} c6 {[%clk 01:31:22]}
{[%emt 00:00:05]} 3. Nf3 {[%clk 01:31:34]} {[%emt 00:00:09]} Nf6 {[%clk
01:30:53]} {[%emt 00:01:00]} 4. Nc3 {[%clk 01:31:45]} {[%emt 00:00:18]} e6
{[%clk 01:31:16]} {[%emt 00:00:08]} 5. e3 {[%clk 01:32:05]} {[%emt 00:00:09]}
Nbd7 {[%clk 01:31:39]} {[%emt 00:00:08]} 6. Qc2 {[%clk 01:32:28]} {[%emt
00:00:06]} Bd6 {[%clk 01:32:01]} {[%emt 00:00:09]} 7. Bd3 {[%clk 01:32:49]}
{[%emt 00:00:08]} dxc4 {[%clk 01:32:18]} {[%emt 00:00:13]} 8. Bxc4 {[%clk
01:33:14]} {[%emt 00:00:05]} b5 {[%clk 01:32:46]} {[%emt 00:00:03]} 9. Be2
{[%clk 01:33:35]} {[%emt 00:00:08]} Bb7 {[%clk 01:33:03]} {[%emt 00:00:13]} 10.
O-O {[%clk 01:32:31]} {[%emt 00:01:33]} O-O {[%clk 01:32:10]} {[%emt 00:01:24]}
11. Rd1 {[%clk 01:31:59]} {[%emt 00:01:01]} Qc7 {[%clk 01:31:18]} {[%emt
00:01:23]} 12. e4 {[%clk 01:32:02]} {[%emt 00:00:27]} e5 {[%clk 01:31:10]}
{[%emt 00:00:39]} 13. Bg5 {[%clk 01:32:14]} {[%emt 00:00:16]} a6 {[%clk
01:29:56]} {[%emt 00:01:45]} 14. dxe5 {[%clk 01:24:03]} {[%emt 00:08:40]} Bxe5
{[%clk 01:07:57]} {[%emt 00:22:29]} 15. Nxe5 {[%clk 01:24:04]} {[%emt
00:00:30]} Qxe5 {[%clk 01:08:22]} {[%emt 00:00:05]} 16. Be3 {[%clk 01:18:50]}
{[%emt 00:05:42]} b4 {[%clk 01:04:28]} {[%emt 00:04:26]} 17. Na4 {[%clk
01:14:29]} {[%emt 00:04:50]} c5 {[%clk 01:03:53]} {[%emt 00:01:06]} 18. f3
{[%clk 01:10:47]} {[%emt 00:04:10]} Rac8 {[%clk 00:53:23]} {[%emt 00:11:01]} 19.
Bc4 {[%clk 01:08:16]} {[%emt 00:03:00]} Bc6 {[%clk 00:51:41]} {[%emt 00:02:13]}
20. b3 {[%clk 01:05:52]} {[%emt 00:02:52]} Rfe8 {[%clk 00:32:05]} {[%emt
00:20:07]} 21. Qf2 {[%clk 00:54:36]} {[%emt 00:11:46]} Bb5 {[%clk 00:17:34]}
{[%emt 00:15:01]} 22. Rac1 {[%clk 00:50:44]} {[%emt 00:04:21]} Bxa4 {[%clk
00:09:38]} {[%emt 00:08:28]} 23. bxa4 {[%clk 00:51:02]} {[%emt 00:00:11]} Rc6
{[%clk 00:10:05]} {[%emt 00:00:02]} 24. g3 {[%clk 00:45:16]} {[%emt 00:06:15]}
Qe7 {[%clk 00:09:12]} {[%emt 00:01:26]} 25. Bf1 {[%clk 00:42:26]} {[%emt
00:03:18]} Rec8 {[%clk 00:08:06]} {[%emt 00:01:38]} 26. Bh3 {[%clk 00:40:45]}
{[%emt 00:02:08]} c4 {[%clk 00:07:29]} {[%emt 00:01:10]} 27. e5 {[%clk
00:34:44]} {[%emt 00:06:31]} Nxe5 {[%clk 00:07:44]} {[%emt 00:00:14]} 28. Bxc8
{[%clk 00:35:07]} {[%emt 00:00:08]} Rxc8 {[%clk 00:08:13]} {[%emt 00:00:02]} 29.
Bd4 {[%clk 00:34:54]} {[%emt 00:00:41]} Qc7 {[%clk 00:05:15]} {[%emt 00:03:30]}
30. Bxe5 {[%clk 00:30:06]} {[%emt 00:05:18]} Qxe5 {[%clk 00:05:40]} {[%emt
00:00:05]} 31. Qd4 {[%clk 00:30:26]} {[%emt 00:00:10]} Qe2 {[%clk 00:03:02]}
{[%emt 00:03:08]} 32. Re1 {[%clk 00:25:53]} {[%emt 00:05:02]} Qxa2 {[%clk
00:03:30]} {[%emt 00:00:04]} 33. Qb6 {[%clk 00:22:16]} {[%emt 00:04:06]} Qd2
{[%clk 00:01:57]} {[%emt 00:02:03]} 34. Rcd1 {[%clk 00:21:15]} {[%emt
00:01:31]} 1-0

[Event "NJSK 2018 Jeugd A"]
[Site "Assen, Netherlands"]
[Date "2018.05.02"]
[Round "4.6"]
[White "Jongste, David"]
[Black "Nguyen, Kevin"]
[Result "0-1"]
[TimeControl "40/90m+30m+30sec/move"]
[WhiteElo "2092"]
[BlackElo "2122"]

1. e4 {[%clk 01:30:58]} {[%emt 00:00:02]} c5 {[%clk 01:30:57]} {[%emt
00:00:04]} 2. Nf3 {[%clk 01:31:19]} {[%emt 00:00:08]} g6 {[%clk 01:31:24]}
{[%emt 00:00:03]} 3. c4 {[%clk 01:30:46]} {[%emt 00:01:03]} Nc6 {[%clk
01:31:39]} {[%emt 00:00:15]} 4. d4 {[%clk 01:30:55]} {[%emt 00:00:22]} cxd4
{[%clk 01:31:57]} {[%emt 00:00:12]} 5. Nxd4 {[%clk 01:31:16]} {[%emt 00:00:08]}
Nf6 {[%clk 01:32:19]} {[%emt 00:00:08]} 6. Nc3 {[%clk 01:31:32]} {[%emt
00:00:14]} d6 {[%clk 01:32:43]} {[%emt 00:00:06]} 7. Be2 {[%clk 01:31:22]}
{[%emt 00:00:39]} Nxd4 {[%clk 01:33:01]} {[%emt 00:00:13]} 8. Qxd4 {[%clk
01:31:44]} {[%emt 00:00:08]} Bg7 {[%clk 01:33:28]} {[%emt 00:00:03]} 9. Be3
{[%clk 01:31:36]} {[%emt 00:00:38]} O-O {[%clk 01:33:54]} {[%emt 00:00:05]} 10.
Qd2 {[%clk 01:30:56]} {[%emt 00:01:09]} a5 {[%clk 01:34:17]} {[%emt 00:00:07]}
11. O-O {[%clk 01:29:59]} {[%emt 00:01:27]} a4 {[%clk 01:34:42]} {[%emt
00:00:06]} 12. f3 {[%clk 01:26:39]} {[%emt 00:03:49]} Qa5 {[%clk 01:35:04]}
{[%emt 00:00:09]} 13. Rfc1 {[%clk 01:25:45]} {[%emt 00:01:24]} Be6 {[%clk
01:32:55]} {[%emt 00:02:39]} 14. Rab1 {[%clk 01:23:44]} {[%emt 00:02:30]} Rfc8
{[%clk 01:29:18]} {[%emt 00:04:07]} 15. b4 {[%clk 01:18:50]} {[%emt 00:05:24]}
axb3 {[%clk 01:21:44]} {[%emt 00:08:05]} 16. axb3 {[%clk 01:17:44]} {[%emt
00:01:36]} Qb4 {[%clk 01:21:30]} {[%emt 00:00:45]} 17. Bf1 {[%clk 01:15:56]}
{[%emt 00:02:16]} Ra3 {[%clk 01:16:15]} {[%emt 00:05:45]} 18. Na4 {[%clk
01:00:18]} {[%emt 00:16:08]} Qxd2 {[%clk 01:07:43]} {[%emt 00:09:03]} 19. Bxd2
{[%clk 01:00:41]} {[%emt 00:00:07]} Ra2 {[%clk 01:07:32]} {[%emt 00:00:41]} 20.
Be3 {[%clk 00:54:46]} {[%emt 00:06:24]} Nd7 {[%clk 01:04:41]} {[%emt 00:03:21]}
21. Nc3 {[%clk 00:45:34]} {[%emt 00:09:42]} Bxc3 {[%clk 01:01:04]} {[%emt
00:04:07]} 22. Rxc3 {[%clk 00:44:41]} {[%emt 00:01:23]} b5 {[%clk 01:01:00]}
{[%emt 00:00:35]} 23. Rbc1 {[%clk 00:38:08]} {[%emt 00:07:03]} b4 {[%clk
01:00:28]} {[%emt 00:01:02]} 24. R3c2 {[%clk 00:37:11]} {[%emt 00:01:26]} Ra3
{[%clk 01:00:36]} {[%emt 00:00:23]} 25. Rb2 {[%clk 00:37:08]} {[%emt 00:00:33]}
Nc5 {[%clk 01:00:39]} {[%emt 00:00:26]} 26. Bxc5 {[%clk 00:29:06]} {[%emt
00:08:31]} dxc5 {[%clk 01:00:29]} {[%emt 00:00:41]} 27. Rd1 {[%clk 00:28:57]}
{[%emt 00:00:39]} f6 {[%clk 00:59:17]} {[%emt 00:01:42]} 28. Kf2 {[%clk
00:28:55]} {[%emt 00:00:32]} Kf7 {[%clk 00:59:41]} {[%emt 00:00:07]} 29. Ke3
{[%clk 00:27:12]} {[%emt 00:02:13]} Rca8 {[%clk 00:59:41]} {[%emt 00:00:30]} 30.
Be2 {[%clk 00:25:21]} {[%emt 00:02:20]} Ra2 {[%clk 00:54:14]} {[%emt 00:05:57]}
31. Rxa2 {[%clk 00:18:35]} {[%emt 00:07:15]} Rxa2 {[%clk 00:54:11]} {[%emt
00:00:34]} 32. Rd2 {[%clk 00:18:28]} {[%emt 00:00:37]} Ra1 {[%clk 00:52:26]}
{[%emt 00:02:15]} 33. Rd1 {[%clk 00:17:42]} {[%emt 00:01:16]} Ra3 {[%clk
00:52:41]} {[%emt 00:00:15]} 34. Rd3 {[%clk 00:17:34]} {[%emt 00:00:37]} g5
{[%clk 00:50:06]} {[%emt 00:03:05]} 35. g3 {[%clk 00:17:01]} {[%emt 00:01:03]}
Ra1 {[%clk 00:33:21]} {[%emt 00:17:14]} 36. Rd1 {[%clk 00:15:49]} {[%emt
00:01:42]} Ra3 {[%clk 00:24:50]} {[%emt 00:09:02]} 37. Rd3 {[%clk 00:16:03]}
{[%emt 00:00:16]} h5 {[%clk 00:23:06]} {[%emt 00:02:15]} 38. Bd1 {[%clk
00:13:17]} {[%emt 00:03:16]} Kg6 {[%clk 00:20:58]} {[%emt 00:02:38]} 39. f4
{[%clk 00:10:06]} {[%emt 00:03:41]} Bg4 {[%clk 00:20:11]} {[%emt 00:01:18]} 40.
Bc2 {[%clk 00:06:08]} {[%emt 00:04:27]} Ra1 {[%clk 00:17:14]} {[%emt 00:03:29]}
41. Rd2 {[%clk 00:01:50]} {[%emt 00:04:47]} gxf4+ {[%clk 00:15:43]} {[%emt
00:02:01]} 42. gxf4 {[%clk 00:30:16]} {[%emt 00:02:03]} e5 {[%clk 00:45:53]}
{[%emt 00:00:21]} 43. fxe5 {[%clk 00:19:07]} {[%emt 00:11:39]} fxe5 {[%clk
00:45:58]} {[%emt 00:00:26]} 44. Rd6+ {[%clk 00:17:40]} {[%emt 00:01:56]} Kg5
{[%clk 00:40:07]} {[%emt 00:06:22]} 45. Rd5 {[%clk 00:17:51]} {[%emt 00:00:19]}
Re1+ {[%clk 00:40:32]} {[%emt 00:00:04]} 46. Kd2 {[%clk 00:16:05]} {[%emt
00:02:16]} Re2+ {[%clk 00:40:51]} {[%emt 00:00:12]} 47. Kc1 {[%clk 00:15:12]}
{[%emt 00:01:22]} Kf4 {[%clk 00:40:34]} {[%emt 00:00:47]} 48. Rxc5 {[%clk
00:10:24]} {[%emt 00:05:19]} Rxh2 {[%clk 00:40:58]} {[%emt 00:00:06]} 49. Rc7
{[%clk 00:10:12]} {[%emt 00:00:41]} h4 {[%clk 00:39:58]} {[%emt 00:01:31]} 50.
Rf7+ {[%clk 00:09:41]} {[%emt 00:01:01]} Ke3 {[%clk 00:39:36]} {[%emt
00:00:52]} 51. c5 {[%clk 00:09:32]} {[%emt 00:00:39]} h3 {[%clk 00:39:24]}
{[%emt 00:00:41]} 52. c6 {[%clk 00:09:27]} {[%emt 00:00:36]} Rh1+ {[%clk
00:39:39]} {[%emt 00:00:15]} 53. Kb2 {[%clk 00:09:51]} {[%emt 00:00:06]} Rg1
{[%clk 00:36:55]} {[%emt 00:03:13]} 54. Rh7 {[%clk 00:07:09]} {[%emt 00:03:12]}
Rg2 {[%clk 00:36:58]} {[%emt 00:00:28]} 55. c7 {[%clk 00:06:43]} {[%emt
00:00:56]} h2 {[%clk 00:36:26]} {[%emt 00:01:01]} 56. Rh4 {[%clk 00:06:42]}
{[%emt 00:00:32]} Bc8 {[%clk 00:36:01]} {[%emt 00:00:55]} 57. Rh8 {[%clk
00:06:36]} {[%emt 00:00:36]} Bb7 {[%clk 00:36:14]} {[%emt 00:00:19]} 58. Rh3+
{[%clk 00:04:04]} {[%emt 00:03:01]} Kf2 {[%clk 00:36:32]} {[%emt 00:00:12]} 59.
Rh8 {[%clk 00:03:21]} {[%emt 00:01:13]} Kg1 {[%emt 00:00:38]} 60. Rb8 {[%clk
00:03:31]} h1=Q {[%clk 00:36:28]} {[%emt 00:00:45]} 61. Rxb7 {[%clk 00:03:52]}
{[%emt 00:00:09]} Rxc2+ {[%clk 00:36:54]} {[%emt 00:00:04]} 0-1

[Event "NJSK 2018 Jeugd A"]
[Site "Assen, Netherlands"]
[Date "2018.05.02"]
[Round "4.7"]
[White "Bekedam, Tyro"]
[Black "Van der Werf, Joel"]
[Result "1-0"]
[TimeControl "40/90m+30m+30sec/move"]
[WhiteElo "1955"]
[BlackElo "1842"]

1. e4 {[%clk 01:30:55]} {[%emt 00:00:04]} e5 {[%clk 01:30:58]} {[%emt
00:00:03]} 2. Nf3 {[%clk 01:31:15]} {[%emt 00:00:09]} Nc6 {[%clk 01:31:23]}
{[%emt 00:00:06]} 3. Bb5 {[%clk 01:31:41]} {[%emt 00:00:04]} a6 {[%clk
01:31:51]} {[%emt 00:00:02]} 4. Ba4 {[%clk 01:32:08]} {[%emt 00:00:04]} Nf6
{[%clk 01:32:17]} {[%emt 00:00:03]} 5. O-O {[%clk 01:32:31]} {[%emt 00:00:06]}
Be7 {[%clk 01:32:45]} {[%emt 00:00:02]} 6. Re1 {[%clk 01:32:48]} {[%emt
00:00:14]} b5 {[%clk 01:33:07]} {[%emt 00:00:08]} 7. Bb3 {[%clk 01:33:12]}
{[%emt 00:00:05]} d6 {[%clk 01:33:34]} {[%emt 00:00:03]} 8. c3 {[%clk
01:32:32]} {[%emt 00:01:11]} O-O {[%clk 01:34:00]} {[%emt 00:00:04]} 9. h3
{[%clk 01:32:43]} {[%emt 00:00:19]} Na5 {[%clk 01:34:17]} {[%emt 00:00:13]} 10.
Bc2 {[%clk 01:33:08]} {[%emt 00:00:05]} c5 {[%clk 01:34:44]} {[%emt 00:00:03]}
11. d4 {[%clk 01:33:30]} {[%emt 00:00:08]} Nd7 {[%clk 01:34:52]} {[%emt
00:00:23]} 12. Nbd2 {[%clk 01:31:56]} {[%emt 00:02:02]} exd4 {[%clk 01:35:09]}
{[%emt 00:00:14]} 13. cxd4 {[%clk 01:32:21]} {[%emt 00:00:05]} Nc6 {[%clk
01:35:36]} {[%emt 00:00:03]} 14. d5 {[%clk 01:31:02]} {[%emt 00:01:48]} Nce5
{[%clk 01:36:01]} {[%emt 00:00:06]} 15. a4 {[%clk 01:27:42]} {[%emt 00:03:49]}
Bb7 {[%clk 01:33:00]} {[%emt 00:03:31]} 16. Nxe5 {[%clk 01:25:23]} {[%emt
00:02:49]} Nxe5 {[%clk 01:32:29]} {[%emt 00:01:02]} 17. f4 {[%clk 01:25:12]}
{[%emt 00:00:40]} Ng6 {[%clk 01:31:56]} {[%emt 00:01:03]} 18. Nf3 {[%clk
01:25:27]} {[%emt 00:00:15]} Re8 {[%clk 01:29:26]} {[%emt 00:03:01]} 19. Be3
{[%clk 01:17:17]} {[%emt 00:08:39]} Rc8 {[%clk 01:22:48]} {[%emt 00:07:08]} 20.
Qd2 {[%clk 01:09:44]} {[%emt 00:08:03]} Rb8 {[%clk 01:06:46]} {[%emt 00:16:33]}
21. axb5 {[%clk 01:01:51]} {[%emt 00:08:23]} axb5 {[%clk 01:06:33]} {[%emt
00:00:43]} 22. b4 {[%clk 01:01:52]} {[%emt 00:00:28]} c4 {[%clk 00:58:05]}
{[%emt 00:08:59]} 23. Nd4 {[%clk 00:53:41]} {[%emt 00:08:41]} Qd7 {[%clk
00:45:22]} {[%emt 00:13:13]} 24. Ra5 {[%clk 00:50:24]} {[%emt 00:03:47]} Ba8
{[%clk 00:36:56]} {[%emt 00:08:56]} 25. Nxb5 {[%clk 00:45:04]} {[%emt
00:05:49]} Bd8 {[%clk 00:36:03]} {[%emt 00:01:23]} 26. Ra7 {[%clk 00:44:27]}
{[%emt 00:01:06]} Bb7 {[%clk 00:29:03]} {[%emt 00:07:31]} 27. Ba4 {[%clk
00:39:48]} {[%emt 00:05:10]} Rxe4 {[%clk 00:20:24]} {[%emt 00:09:09]} 28. Nc3
{[%clk 00:39:45]} {[%emt 00:00:32]} Qe7 {[%clk 00:19:53]} {[%emt 00:01:02]} 29.
Nxe4 {[%clk 00:37:40]} {[%emt 00:02:34]} Qxe4 {[%clk 00:19:33]} {[%emt
00:00:51]} 30. Bf2 {[%clk 00:34:37]} {[%emt 00:03:32]} Qf5 {[%clk 00:17:44]}
{[%emt 00:02:19]} 31. Re8+ {[%clk 00:33:37]} {[%emt 00:01:30]} Nf8 {[%clk
00:18:10]} {[%emt 00:00:05]} 32. Rxd8 {[%clk 00:33:13]} {[%emt 00:00:53]} Rxd8
{[%clk 00:17:53]} {[%emt 00:00:48]} 33. Rxb7 {[%clk 00:33:37]} {[%emt
00:00:05]} Qb1+ {[%clk 00:17:30]} {[%emt 00:00:53]} 34. Kh2 {[%clk 00:33:52]}
{[%emt 00:00:15]} Ra8 {[%clk 00:16:31]} {[%emt 00:01:30]} 35. Ra7 {[%clk
00:29:34]} {[%emt 00:04:48]} 1-0

[Event "NJSK 2018 Jeugd A"]
[Site "Assen, Netherlands"]
[Date "2018.05.02"]
[Round "4.8"]
[White "Kanbier, Max"]
[Black "Gijsen, William"]
[Result "1/2-1/2"]
[TimeControl "40/90m+30m+30sec/move"]
[WhiteElo "1857"]
[BlackElo "1825"]

1. f4 {[%clk 01:30:47]} {[%emt 00:00:12]} d5 {[%clk 01:30:55]} {[%emt
00:00:05]} 2. Nf3 {[%clk 01:31:13]} {[%emt 00:00:05]} c5 {[%clk 01:31:19]}
{[%emt 00:00:06]} 3. g3 {[%clk 01:31:38]} {[%emt 00:00:05]} Nc6 {[%clk
01:31:32]} {[%emt 00:00:17]} 4. Bg2 {[%clk 01:31:52]} {[%emt 00:00:15]} g6
{[%clk 01:31:42]} {[%emt 00:00:20]} 5. O-O {[%clk 01:32:12]} {[%emt 00:00:09]}
Bg7 {[%clk 01:32:06]} {[%emt 00:00:06]} 6. d3 {[%clk 01:32:34]} {[%emt
00:00:09]} Nf6 {[%clk 01:28:58]} {[%emt 00:03:39]} 7. Nc3 {[%clk 01:32:58]}
{[%emt 00:00:05]} O-O {[%clk 01:27:07]} {[%emt 00:02:21]} 8. e4 {[%clk
01:32:50]} {[%emt 00:00:38]} e6 {[%clk 01:24:40]} {[%emt 00:02:57]} 9. e5
{[%clk 01:32:18]} {[%emt 00:01:03]} Nd7 {[%clk 01:18:09]} {[%emt 00:07:00]} 10.
Qe2 {[%clk 01:32:17]} {[%emt 00:00:31]} a6 {[%clk 01:17:50]} {[%emt 00:00:49]}
11. Nd1 {[%clk 01:31:45]} {[%emt 00:01:02]} f6 {[%clk 01:11:51]} {[%emt
00:06:30]} 12. Bh3 {[%clk 01:29:55]} {[%emt 00:02:19]} Re8 {[%clk 01:08:12]}
{[%emt 00:04:09]} 13. exf6 {[%clk 01:28:39]} {[%emt 00:01:47]} Nxf6 {[%clk
01:05:15]} {[%emt 00:03:27]} 14. Nh4 {[%clk 01:27:27]} {[%emt 00:01:41]} Qd6
{[%clk 01:00:37]} {[%emt 00:05:08]} 15. g4 {[%clk 01:23:51]} {[%emt 00:04:06]}
b6 {[%clk 00:52:40]} {[%emt 00:08:27]} 16. Qf2 {[%clk 01:22:30]} {[%emt
00:01:51]} Rf8 {[%clk 00:52:11]} {[%emt 00:01:00]} 17. f5 {[%clk 01:21:10]}
{[%emt 00:01:49]} exf5 {[%clk 00:51:58]} {[%emt 00:00:43]} 18. gxf5 {[%clk
01:21:33]} {[%emt 00:00:07]} Ne8 {[%clk 00:51:15]} {[%emt 00:01:13]} 19. Qg2
{[%clk 01:14:34]} {[%emt 00:07:29]} Bxf5 {[%clk 00:47:46]} {[%emt 00:03:59]} 20.
Bxf5 {[%clk 01:14:16]} {[%emt 00:00:49]} gxf5 {[%clk 00:48:05]} {[%emt
00:00:11]} 21. Nxf5 {[%clk 01:14:11]} {[%emt 00:00:34]} Qg6 {[%clk 00:48:08]}
{[%emt 00:00:27]} 22. Nh6+ {[%clk 01:10:43]} {[%emt 00:03:58]} 1/2-1/2